fUST/lending_fUST_20250903
["ID","MTS","AMOUNT","RATE_DAILY","PERIOD"]
[383172579,1756871440003,-480.0,0.00013698,2]
[383172581,1756871440013,-480.0,0.00013698,2]
[383172583,1756871440022,-480.0,0.00013698,2]
[383172585,1756871440032,-480.0,0.00013698,2]
[383172587,1756871440042,-520.81,0.00013698,2]
[383172589,1756871440051,-480.0,0.00013698,2]
[383172591,1756871440060,-480.0,0.00013698,2]
[383172593,1756871440070,-480.0,0.00013698,2]
[383172595,1756871440079,-483.57290136,0.00013698,2]
[383172597,1756871440089,-480.0,0.00013698,2]
[383172599,1756871440098,-480.0,0.00013698,2]
[383172601,1756871440107,-480.0,0.00013698,2]
[383172603,1756871440116,-420.58114481,0.00013698,2]
[383172605,1756871440126,-480.0,0.00013698,2]
[383172607,1756871440135,-480.0,0.00013698,2]
[383172609,1756871440144,-480.0,0.00013698,2]
[383172611,1756871440154,-156.074305,0.00013698,2]
[383172613,1756871440163,-480.0,0.00013698,2]
[383172615,1756871440173,-480.0,0.00013698,2]
[383172617,1756871440183,-618.43,0.00013698,2]
[383172619,1756871440191,-428.62476643,0.00013698,2]
[383172621,1756871440200,-480.0,0.00013698,2]
[383172622,1756871440209,-480.0,0.00013698,2]
[383172625,1756871440219,-597.88,0.00013698,2]
[383172627,1756871440228,-480.0,0.00013698,2]
[383172629,1756871440238,-1527.57,0.00013698,2]
[383172631,1756871440248,-480.0,0.00013698,2]
[383172633,1756871440257,-480.0,0.00013698,2]
[383172635,1756871440266,-480.0,0.00013698,2]
[383172637,1756871440276,-480.0,0.00013698,2]
[383172639,1756871440285,-480.0,0.00013698,2]
[383172641,1756871440294,-480.0,0.00013698,2]
[383172643,1756871440303,-480.0,0.00013698,2]
[383172645,1756871440312,-746.68,0.00013698,2]
[383172647,1756871440321,-480.0,0.00013698,2]
[383172649,1756871440331,-480.0,0.00013698,2]
[383172651,1756871440340,-480.0,0.00013698,2]
[383172653,1756871440349,-480.0,0.00013698,2]
[383172655,1756871440359,-557.07,0.00013698,2]
[383172657,1756871440368,-480.0,0.00013698,2]
[383172659,1756871440377,-480.0,0.00013698,2]
[383172661,1756871440386,-402.064332,0.00013698,2]
[383172663,1756871440395,-245.79345892,0.00013698,2]
[383172665,1756871440405,-480.0,0.00013698,2]
[383172667,1756871440415,-480.0,0.00013698,2]
[383172669,1756871440424,-480.0,0.00013698,2]
[383172671,1756871440433,-480.0,0.00013698,2]
[383172673,1756871440443,-2226.83,0.00013698,2]
[383172675,1756871440452,-196.60952357,0.00013698,2]
[383172677,1756871440464,-283.39047643,0.00013698,2]
[383172679,1756871440474,-480.0,0.00013698,2]
[383172681,1756871440484,-480.0,0.00013698,2]
[383172683,1756871440493,-480.0,0.00013698,2]
[383172685,1756871440504,-480.0,0.00013698,2]
[383172687,1756871440514,-203.03,0.00013698,2]
[383172689,1756871440523,-14.18030215,0.00013698,2]
[383172705,1756871440665,-477.38969785,0.00013698,2]
[383172707,1756871440675,-1196.8,0.00013698,2]
[383172709,1756871440684,-480.0,0.00013698,2]
[383172711,1756871440693,-701.88,0.00013698,2]
[383172713,1756871440702,-482.67695008,0.00013698,2]
[383172715,1756871440712,-962.78,0.00013698,2]
[383172717,1756871440721,-480.0,0.00013698,2]
[383172719,1756871440731,-480.0,0.00013698,2]
[383172721,1756871440740,-495.57099821,0.00013698,2]
[383172724,1756871440754,-60.23317869,0.00013698,2]
[383172725,1756871440763,-480.0,0.00013698,2]
[383172727,1756871440773,-480.0,0.00013698,2]
[383172729,1756871440782,-480.0,0.00013698,2]
[383172730,1756871440792,-480.0,0.00013698,2]
[383172732,1756871440801,-480.0,0.00013698,2]
[383172734,1756871440810,-480.0,0.00013698,2]
[383172735,1756871440819,-480.0,0.00013698,2]
[383172737,1756871440829,-521.94944239,0.00013698,2]
[383172739,1756871440839,-480.0,0.00013698,2]
[383172741,1756871440848,-996.32,0.00013698,2]
[383172742,1756871440857,-480.0,0.00013698,2]
[383172744,1756871440867,-481.76839264,0.00013698,2]
[383172746,1756871440877,-480.0,0.00013698,2]
[383172748,1756871440887,-480.0,0.00013698,2]
[383172749,1756871440896,-1120.35,0.00013698,2]
[383172751,1756871440906,-608.67,0.00013698,2]
[383172753,1756871440915,-480.0,0.00013698,2]
[383172755,1756871440925,-551.53,0.00013698,2]
[383172757,1756871440934,-480.0,0.00013698,2]
[383172758,1756871440943,-480.0,0.00013698,2]
[383172760,1756871440952,-511.08,0.00013698,2]
[383172762,1756871440961,-480.0,0.00013698,2]
[383172763,1756871440971,-480.0,0.00013698,2]
[383172765,1756871440981,-660.39,0.00013698,2]
[383172767,1756871440990,-801.43,0.00013698,2]
[383172768,1756871440999,-480.0,0.00013698,2]
[383172770,1756871441009,-480.0,0.00013698,2]
[383172772,1756871441018,-512.70232628,0.00013698,2]
[383172774,1756871441028,-480.0,0.00013698,2]
[383172775,1756871441037,-480.0,0.00013698,2]
[383172777,1756871441046,-480.0,0.00013698,2]
[383172779,1756871441056,-151.0,0.00013698,2]
[383172780,1756871441065,-151.0,0.00013698,2]
[383172782,1756871441075,-480.0,0.00013698,2]
[383172784,1756871441084,-151.0,0.00013698,2]
[383172786,1756871441093,-163.53517994,0.00013698,2]
[383172787,1756871441103,-466.23478909,0.00013698,2]
[383172789,1756871441112,-481.15592223,0.00013698,2]
[383172791,1756871441121,-480.0,0.00013698,2]
[383172793,1756871441131,-2921.47,0.00013698,2]
[383172794,1756871441141,-655.590786,0.00013699,2]
[383172796,1756871441150,-11166.52778777,0.00013699,2]
[383172798,1756871441164,-5524.44011731,0.00013699,2]
[383172946,1756871442877,-448.68,0.00013698,2]
[383172948,1756871442889,-743.32,0.00013698,2]
[383172950,1756871442898,-340.025752,0.00013698,2]
[383172957,1756871442931,-139.974248,0.00013698,2]
[383172959,1756871442942,-926.87582362,0.00013699,2]
[383172961,1756871442951,-151.0,0.00013699,2]
[383172963,1756871442961,-530.32150586,0.00013871,2]
[383172964,1756871442973,-417.15472785,0.00013871,2]
[383172966,1756871442983,-160.0,0.00013871,2]
[383172968,1756871442993,-846.3157213,0.00013871,2]
[383172970,1756871443002,-208.33333333,0.00013871,2]
[383172972,1756871443012,-217.50314573,0.00013871,2]
[383172973,1756871443022,-232.90165665,0.00013871,2]
[383172975,1756871443031,-160.0,0.00013871,2]
[383172977,1756871443041,-151.0,0.00013879,2]
[383172979,1756871443051,-4129.0921548,0.00013964,2]
[383172981,1756871443060,-11598.95348653,0.0001397,2]
[383172983,1756871443069,-151.0,0.0001397,2]
[383172984,1756871443078,-500.0,0.00013971,2]
[383172986,1756871443088,-500.0,0.00013971,2]
[383172988,1756871443097,-500.0,0.00013971,2]
[383172990,1756871443106,-500.0,0.00013971,2]
[383172992,1756871443115,-500.0,0.00013971,2]
[383172994,1756871443124,-500.0,0.00013971,2]
[383172995,1756871443134,-500.0,0.00013971,2]
[383172997,1756871443143,-85.83499182,0.00013971,2]
[383173183,1756871445982,-414.16500818,0.00013971,2]
[383173186,1756871445991,-292.95687982,0.00013971,2]
[383173207,1756871446190,-207.04312018,0.00013971,2]
[383173209,1756871446200,-500.0,0.00013971,2]
[383173211,1756871446209,-318.43817686,0.00013971,2]
[383173213,1756871446219,-500.0,0.00013971,2]
[383173215,1756871446229,-171.56102624,0.00013972,2]
[383173217,1756871446238,-480.0,0.00013972,2]
[383173219,1756871446247,-480.0,0.00013972,2]
[383173221,1756871446257,-480.0,0.00013972,2]
[383173223,1756871446266,-580.09982346,0.00013972,2]
[383173225,1756871446275,-480.0,0.00013972,2]
[383173227,1756871446285,-480.0,0.00013972,2]
[383173229,1756871446294,-480.0,0.00013972,2]
[383173231,1756871446303,-480.0,0.00013972,2]
[383173232,1756871446312,-151.0,0.00013972,2]
[383173234,1756871446322,-151.0,0.00013972,2]
[383173236,1756871446331,-480.0,0.00013972,2]
[383173238,1756871446341,-274.65,0.00013972,2]
[383173240,1756871446350,-467.88720991,0.00013972,2]
[383176668,1756871648486,529.25,0.00012329,2]
[383176673,1756871658779,546.9,0.00012329,2]
[383176677,1756871669179,455.75,0.00012329,2]
[383176679,1756871679661,379.79,0.00012329,2]
[383176680,1756871690327,316.49,0.00012329,2]
[383176682,1756871700787,263.75,0.00012329,2]
[383176683,1756871711191,219.79,0.00012329,2]
[383176686,1756871721926,183.16,0.00012329,2]
[383176688,1756871732266,152.63,0.00012329,2]
[383176690,1756871742705,763.17,0.00012329,2]
[383176739,1756872017279,498.42992106,0.00029772,60]
[383176773,1756872192488,11176.55765,0.00013,2]
[383176787,1756872260200,20059.8348858,0.00012741,2]
[383176913,1756872632092,-300.0,0.00013689,2]
[383176915,1756872632102,-250.0,0.0001369,2]
[383176917,1756872632112,-159.35367536,0.0001369,2]
[383176918,1756872632122,-250.0,0.0001369,2]
[383176919,1756872632138,-250.0,0.0001369,2]
[383176920,1756872632147,-250.0,0.0001369,2]
[383176922,1756872632157,-250.0,0.0001369,2]
[383176924,1756872632166,-250.0,0.0001369,2]
[383176926,1756872632176,-250.0,0.0001369,2]
[383176928,1756872632186,-250.0,0.0001369,2]
[383176930,1756872632196,-263.44403176,0.0001369,2]
[383176932,1756872632205,-159.90518955,0.0001369,2]
[383176934,1756872632214,-500.0,0.00013697,2]
[383176936,1756872632224,-500.0,0.00013697,2]
[383176938,1756872632233,-500.0,0.00013697,2]
[383176940,1756872632243,-500.0,0.00013697,2]
[383176942,1756872632252,-418.59586821,0.00013697,2]
[383176944,1756872632261,-220.5780054,0.00013697,2]
[383176946,1756872632270,-500.0,0.00013697,2]
[383176948,1756872632280,-500.0,0.00013697,2]
[383176950,1756872632289,-500.0,0.00013697,2]
[383176952,1756872632299,-500.0,0.00013697,2]
[383176954,1756872632308,-500.0,0.00013697,2]
[383176956,1756872632318,-500.0,0.00013697,2]
[383176958,1756872632327,-500.0,0.00013697,2]
[383176960,1756872632336,-500.0,0.00013697,2]
[383176962,1756872632345,-500.0,0.00013697,2]
[383176964,1756872632355,-500.0,0.00013697,2]
[383176966,1756872632364,-372.9067238,0.00013697,2]
[383176968,1756872632374,-500.0,0.00013697,2]
[383176970,1756872632384,-481.91891233,0.00013698,2]
[383176972,1756872632394,-480.0,0.00013698,2]
[383176974,1756872632404,-481.36090531,0.00013698,2]
[383176976,1756872632413,-480.0,0.00013698,2]
[383176978,1756872632422,-480.0,0.00013698,2]
[383176980,1756872632431,-480.0,0.00013698,2]
[383176982,1756872632441,-583.52992489,0.00013698,2]
[383176984,1756872632450,-164.25561045,0.00013698,2]
[383176986,1756872632459,-480.0,0.00013698,2]
[383176988,1756872632469,-155.110478,0.00013698,2]
[383176990,1756872632478,-480.0,0.00013698,2]
[383176992,1756872632487,-480.0,0.00013698,2]
[383176994,1756872632497,-481.14008288,0.00013698,2]
[383176996,1756872632506,-480.0,0.00013698,2]
[383176998,1756872632516,-569.3473552,0.00013698,2]
[383177000,1756872632525,-480.0,0.00013698,2]
[383177002,1756872632534,-489.7901953,0.00013698,2]
[383177004,1756872632544,-480.0,0.00013698,2]
[383177006,1756872632553,-583.03,0.00013698,2]
[383177008,1756872632563,-372.3789737,0.00013698,2]
[383177010,1756872632572,-480.0,0.00013698,2]
[383177012,1756872632582,-177.11880317,0.00013698,2]
[383177014,1756872632591,-480.0,0.00013698,2]
[383177016,1756872632600,-591.25,0.00013698,2]
[383177018,1756872632609,-486.4364972,0.00013698,2]
[383177020,1756872632618,-459.49190417,0.00013698,2]
[383177021,1756872632627,-480.0,0.00013698,2]
[383177022,1756872632636,-480.0,0.00013698,2]
[383177023,1756872632645,-480.0,0.00013698,2]
[383177024,1756872632654,-480.0,0.00013698,2]
[383177025,1756872632663,-305.10314767,0.00013698,2]
[383177026,1756872632672,-484.44,0.00013698,2]
[383177027,1756872632681,-480.0,0.00013698,2]
[383177028,1756872632690,-480.0,0.00013698,2]
[383177029,1756872632699,-483.61624202,0.00013698,2]
[383177030,1756872632709,-487.37,0.00013698,2]
[383177031,1756872632718,-480.0,0.00013698,2]
[383177032,1756872632727,-576.22,0.00013698,2]
[383177033,1756872632735,-543.33,0.00013698,2]
[383177034,1756872632746,-480.0,0.00013698,2]
[383177035,1756872632755,-480.0,0.00013698,2]
[383177036,1756872632764,-480.0,0.00013698,2]
[383177037,1756872632773,-480.0,0.00013698,2]
[383177038,1756872632782,-480.0,0.00013698,2]
[383177039,1756872632791,-480.0,0.00013698,2]
[383177040,1756872632801,-480.0,0.00013698,2]
[383177041,1756872632809,-480.0,0.00013698,2]
[383177042,1756872632819,-480.0,0.00013698,2]
[383177043,1756872632828,-480.0,0.00013698,2]
[383177044,1756872632836,-480.0,0.00013698,2]
[383177045,1756872632846,-602.11,0.00013698,2]
[383177046,1756872632855,-480.0,0.00013698,2]
[383177047,1756872632864,-480.0,0.00013698,2]
[383177048,1756872632874,-480.0,0.00013698,2]
[383177049,1756872632883,-524.64,0.00013698,2]
[383177050,1756872632892,-480.0,0.00013698,2]
[383177052,1756872632901,-480.0,0.00013698,2]
[383177053,1756872632909,-480.0,0.00013698,2]
[383177054,1756872632918,-480.0,0.00013698,2]
[383177056,1756872632927,-480.0,0.00013698,2]
[383177058,1756872632937,-480.0,0.00013698,2]
[383177060,1756872632946,-480.0,0.00013698,2]
[383177062,1756872632956,-480.0,0.00013698,2]
[383177064,1756872632966,-480.0,0.00013698,2]
[383177066,1756872632975,-480.0,0.00013698,2]
[383177068,1756872632984,-480.0,0.00013698,2]
[383177070,1756872632993,-480.0,0.00013698,2]
[383177071,1756872633002,-481.29325452,0.00013698,2]
[383177073,1756872633014,-480.0,0.00013698,2]
[383177075,1756872633023,-481.56125011,0.00013698,2]
[383177077,1756872633033,-480.0,0.00013698,2]
[383177079,1756872633043,-1003.82966061,0.00013698,2]
[383177081,1756872633052,-480.0,0.00013698,2]
[383177083,1756872633063,-443.6387383,0.00013698,2]
[383177085,1756872633072,-480.0,0.00013698,2]
[383177086,1756872633081,-481.41037125,0.00013698,2]
[383177087,1756872633092,-480.0,0.00013698,2]
[383177088,1756872633101,-154.860388,0.00013698,2]
[383177090,1756872633111,-480.85873164,0.00013698,2]
[383177092,1756872633120,-480.0,0.00013698,2]
[383177093,1756872633129,-482.01486142,0.00013698,2]
[383177094,1756872633138,-480.0,0.00013698,2]
[383177095,1756872633148,-480.0,0.00013698,2]
[383177096,1756872633157,-480.0,0.00013698,2]
[383177097,1756872633165,-480.0,0.00013698,2]
[383177098,1756872633177,-480.0,0.00013698,2]
[383177099,1756872633186,-480.0,0.00013698,2]
[383177100,1756872633195,-480.0,0.00013698,2]
[383177101,1756872633204,-480.0,0.00013698,2]
[383177102,1756872633213,-486.60655053,0.00013698,2]
[383177103,1756872633222,-481.36910324,0.00013698,2]
[383177104,1756872633232,-481.21253863,0.00013698,2]
[383177105,1756872633241,-483.63718701,0.00013698,2]
[383177106,1756872633250,-151.0,0.00013698,2]
[383177107,1756872633259,-481.52013891,0.00013698,2]
[383177108,1756872633268,-151.0,0.00013698,2]
[383177109,1756872633277,-480.0,0.00013698,2]
[383177110,1756872633286,-151.0,0.00013698,2]
[383177111,1756872633296,-151.0,0.00013698,2]
[383177112,1756872633305,-151.0,0.00013698,2]
[383177113,1756872633315,-215.45197,0.00013698,2]
[383177114,1756872633325,-481.77300712,0.00013698,2]
[383177115,1756872633334,-480.0,0.00013698,2]
[383177116,1756872633346,-481.39908877,0.00013698,2]
[383177117,1756872633355,-543.41,0.00013698,2]
[383177118,1756872633365,-480.0,0.00013698,2]
[383177119,1756872633374,-151.0,0.00013698,2]
[383177120,1756872633383,-162.22799,0.00013698,2]
[383177121,1756872633393,-259.55646409,0.00013698,2]
[383177122,1756872633402,-186.485189,0.00013698,2]
[383177123,1756872633411,-480.0,0.00013698,2]
[383177124,1756872633419,-480.0,0.00013698,2]
[383177125,1756872633427,-480.0,0.00013698,2]
[383177126,1756872633435,-480.0,0.00013698,2]
[383177127,1756872633443,-480.0,0.00013698,2]
[383177128,1756872633452,-482.51818291,0.00013698,2]
[383177129,1756872633462,-480.0,0.00013698,2]
[383177130,1756872633471,-480.0,0.00013698,2]
[383177131,1756872633481,-482.95110672,0.00013698,2]
[383177132,1756872633490,-555.12805713,0.00013698,2]
[383177133,1756872633500,-151.0,0.00013698,2]
[383177134,1756872633509,-480.0,0.00013698,2]
[383177135,1756872633518,-480.0,0.00013698,2]
[383177136,1756872633528,-500.34,0.00013698,2]
[383177137,1756872633537,-157.874214,0.00013698,2]
[383177138,1756872633547,-480.0,0.00013698,2]
[383177139,1756872633556,-480.0,0.00013698,2]
[383177140,1756872633567,-480.0,0.00013698,2]
[383177141,1756872633576,-481.13815407,0.00013698,2]
[383177142,1756872633586,-480.0,0.00013698,2]
[383177143,1756872633595,-223.93403854,0.00013698,2]
[383177144,1756872633605,-481.039421,0.00013698,2]
[383177145,1756872633615,-484.23094237,0.00013698,2]
[383177146,1756872633625,-480.0,0.00013698,2]
[383177147,1756872633634,-480.0,0.00013698,2]
[383177148,1756872633643,-481.28150026,0.00013698,2]
[383177149,1756872633653,-542.74,0.00013698,2]
[383177150,1756872633663,-480.0,0.00013698,2]
[383177151,1756872633672,-154.660717,0.00013698,2]
[383177152,1756872633682,-480.0,0.00013698,2]
[383177153,1756872633691,-480.0,0.00013698,2]
[383177154,1756872633701,-480.0,0.00013698,2]
[383177155,1756872633710,-480.0,0.00013698,2]
[383177156,1756872633720,-480.0,0.00013698,2]
[383177157,1756872633729,-231.66720936,0.00013698,2]
[383177158,1756872633738,-481.5375309,0.00013698,2]
[383177159,1756872633748,-480.0,0.00013698,2]
[383177160,1756872633757,-480.0,0.00013698,2]
[383177161,1756872633767,-480.0,0.00013698,2]
[383177162,1756872633777,-480.0,0.00013698,2]
[383177163,1756872633787,-480.0,0.00013698,2]
[383177164,1756872633796,-480.0,0.00013698,2]
[383177165,1756872633806,-480.0,0.00013698,2]
[383177166,1756872633815,-594.8,0.00013698,2]
[383177167,1756872633825,-480.0,0.00013698,2]
[383177168,1756872633834,-480.0,0.00013698,2]
[383177169,1756872633843,-486.10940224,0.00013698,2]
[383177170,1756872633853,-480.0,0.00013698,2]
[383177171,1756872633863,-480.0,0.00013698,2]
[383177172,1756872633872,-480.0,0.00013698,2]
[383177173,1756872633882,-557.18,0.00013698,2]
[383177174,1756872633891,-391.72905702,0.00013698,2]
[383177175,1756872633900,-480.0,0.00013698,2]
[383177176,1756872633909,-480.0,0.00013698,2]
[383177177,1756872633919,-629.35,0.00013698,2]
[383177178,1756872633928,-480.0,0.00013698,2]
[383177179,1756872633938,-151.0,0.00013698,2]
[383177180,1756872633947,-174.144193,0.00013698,2]
[383177181,1756872633956,-480.0,0.00013698,2]
[383177182,1756872633966,-480.0,0.00013698,2]
[383177183,1756872633976,-480.0,0.00013698,2]
[383177184,1756872633986,-481.3042384,0.00013698,2]
[383177185,1756872633995,-480.0,0.00013698,2]
[383177186,1756872634005,-480.0,0.00013698,2]
[383177187,1756872634019,-275.48352916,0.00013698,2]
[383177188,1756872634028,-480.0,0.00013698,2]
[383177189,1756872634038,-480.0,0.00013698,2]
[383177190,1756872634048,-480.0,0.00013698,2]
[383177191,1756872634058,-480.0,0.00013698,2]
[383177192,1756872634068,-480.0,0.00013698,2]
[383177193,1756872634078,-480.0,0.00013698,2]
[383177194,1756872634087,-480.0,0.00013698,2]
[383177195,1756872634098,-480.0,0.00013698,2]
[383177196,1756872634108,-481.65198301,0.00013698,2]
[383177197,1756872634118,-482.04196165,0.00013698,2]
[383177198,1756872634127,-480.0,0.00013698,2]
[383177199,1756872634137,-480.0,0.00013698,2]
[383177200,1756872634147,-480.0,0.00013698,2]
[383177201,1756872634157,-480.0,0.00013698,2]
[383177202,1756872634166,-535.19,0.00013698,2]
[383177203,1756872634175,-480.0,0.00013698,2]
[383177204,1756872634185,-480.0,0.00013698,2]
[383177205,1756872634195,-617.74,0.00013698,2]
[383177206,1756872634204,-536.41046686,0.00013698,2]
[383177207,1756872634214,-480.0,0.00013698,2]
[383177208,1756872634223,-480.0,0.00013698,2]
[383177209,1756872634233,-480.0,0.00013698,2]
[383177210,1756872634242,-480.0,0.00013698,2]
[383177211,1756872634252,-480.0,0.00013698,2]
[383177212,1756872634262,-480.0,0.00013698,2]
[383177213,1756872634272,-480.0,0.00013698,2]
[383177214,1756872634282,-484.5360289,0.00013698,2]
[383177215,1756872634291,-480.0,0.00013698,2]
[383177216,1756872634301,-480.0,0.00013698,2]
[383177217,1756872634310,-483.26306616,0.00013698,2]
[383177218,1756872634322,-480.0,0.00013698,2]
[383177219,1756872634332,-608.43,0.00013698,2]
[383177220,1756872634341,-480.0,0.00013698,2]
[383177221,1756872634351,-480.0,0.00013698,2]
[383177222,1756872634361,-480.0,0.00013698,2]
[383177223,1756872634370,-480.0,0.00013698,2]
[383177224,1756872634382,-542.05,0.00013698,2]
[383177225,1756872634391,-480.0,0.00013698,2]
[383177226,1756872634401,-480.0,0.00013698,2]
[383177227,1756872634410,-484.17584002,0.00013698,2]
[383177228,1756872634420,-480.0,0.00013698,2]
[383177229,1756872634429,-480.0,0.00013698,2]
[383177230,1756872634439,-480.0,0.00013698,2]
[383177231,1756872634449,-480.0,0.00013698,2]
[383177232,1756872634459,-480.0,0.00013698,2]
[383177233,1756872634469,-543.73,0.00013698,2]
[383177234,1756872634478,-480.0,0.00013698,2]
[383177235,1756872634488,-480.0,0.00013698,2]
[383177236,1756872634498,-151.0,0.00013698,2]
[383177237,1756872634507,-151.0,0.00013698,2]
[383177238,1756872634517,-193.732224,0.00013698,2]
[383177239,1756872634526,-156.246116,0.00013698,2]
[383177240,1756872634535,-480.0,0.00013698,2]
[383177241,1756872634545,-485.39846207,0.00013698,2]
[383177242,1756872634554,-480.0,0.00013698,2]
[383177243,1756872634564,-480.0,0.00013698,2]
[383177244,1756872634573,-480.0,0.00013698,2]
[383177245,1756872634583,-480.0,0.00013698,2]
[383177246,1756872634593,-480.0,0.00013698,2]
[383177247,1756872634602,-480.0,0.00013698,2]
[383177248,1756872634611,-156.76565963,0.00013698,2]
[383177249,1756872634621,-480.0,0.00013698,2]
[383177250,1756872634630,-793.15,0.00013698,2]
[383177251,1756872634640,-480.0,0.00013698,2]
[383177252,1756872634651,-512.59,0.00013698,2]
[383177253,1756872634660,-480.0,0.00013698,2]
[383177254,1756872634669,-164.189959,0.00013698,2]
[383177255,1756872634679,-480.0,0.00013698,2]
[383177256,1756872634688,-480.0,0.00013698,2]
[383177257,1756872634697,-487.7,0.00013698,2]
[383177258,1756872634707,-480.0,0.00013698,2]
[383177259,1756872634716,-480.0,0.00013698,2]
[383177260,1756872634725,-480.0,0.00013698,2]
[383177261,1756872634735,-480.0,0.00013698,2]
[383177262,1756872634744,-486.34,0.00013698,2]
[383177263,1756872634753,-480.0,0.00013698,2]
[383177264,1756872634763,-482.55560677,0.00013698,2]
[383177265,1756872634772,-151.0,0.00013698,2]
[383177266,1756872634782,-151.0,0.00013698,2]
[383177267,1756872634791,-151.0,0.00013698,2]
[383177268,1756872634801,-480.0,0.00013698,2]
[383177269,1756872634810,-189.499271,0.00013698,2]
[383177270,1756872634820,-480.0,0.00013698,2]
[383177271,1756872634830,-466.51413566,0.00013698,2]
[383177272,1756872634839,-480.0,0.00013698,2]
[383177273,1756872634849,-3051.71,0.00013698,2]
[383177274,1756872634858,-480.0,0.00013698,2]
[383177275,1756872634868,-480.0,0.00013698,2]
[383177276,1756872634879,-480.0,0.00013698,2]
[383177277,1756872634891,-480.0,0.00013698,2]
[383177278,1756872634901,-530.44444197,0.00013698,2]
[383177279,1756872634911,-480.0,0.00013698,2]
[383177280,1756872634922,-480.0,0.00013698,2]
[383177281,1756872634931,-480.0,0.00013698,2]
[383177282,1756872634943,-480.0,0.00013698,2]
[383177283,1756872634952,-480.0,0.00013698,2]
[383177284,1756872635089,-480.0,0.00013698,2]
[383177285,1756872635099,-1226.25,0.00013698,2]
[383177286,1756872635109,-593.26,0.00013698,2]
[383177287,1756872635118,-480.0,0.00013698,2]
[383177288,1756872635127,-365.90011165,0.00013698,2]
[383177289,1756872635136,-480.0,0.00013698,2]
[383177290,1756872635146,-480.0,0.00013698,2]
[383177291,1756872635155,-480.0,0.00013698,2]
[383177292,1756872635164,-480.0,0.00013698,2]
[383177293,1756872635174,-480.0,0.00013698,2]
[383177294,1756872635183,-3184.83,0.00013698,2]
[383177295,1756872635193,-613.82579862,0.00013698,2]
[383177296,1756872635203,-1106.27,0.00013698,2]
[383177297,1756872635212,-523.94425834,0.00013698,2]
[383177298,1756872635222,-480.0,0.00013698,2]
[383177299,1756872635231,-481.718405,0.00013698,2]
[383177300,1756872635241,-480.0,0.00013698,2]
[383177301,1756872635250,-480.0,0.00013698,2]
[383177302,1756872635259,-480.0,0.00013698,2]
[383177303,1756872635269,-480.0,0.00013698,2]
[383177304,1756872635278,-480.0,0.00013698,2]
[383177305,1756872635288,-480.0,0.00013698,2]
[383177306,1756872635297,-480.0,0.00013698,2]
[383177307,1756872635306,-480.0,0.00013698,2]
[383177308,1756872635315,-1422.02,0.00013698,2]
[383177309,1756872635325,-480.0,0.00013698,2]
[383177310,1756872635335,-480.0,0.00013698,2]
[383177311,1756872635344,-480.0,0.00013698,2]
[383177312,1756872635354,-480.0,0.00013698,2]
[383177313,1756872635363,-480.0,0.00013698,2]
[383177314,1756872635373,-151.0,0.00013698,2]